fUST/lending_fUST_20240812
["ID","MTS","AMOUNT","RATE_DAILY","PERIOD"]
[334693656,1723477853694,-795.76,0.00017327,2]
[334693657,1723477853704,-1243.05,0.00017327,2]
[334693658,1723477853716,-783.69,0.00017327,2]
[334693659,1723477853728,-500.0,0.00017327,2]
[334693660,1723477853739,-1163.85,0.00017342,2]
[334693661,1723477853750,-500.0,0.00017342,2]
[334693662,1723477853759,-633.27062661,0.00017342,2]
[334693663,1723477853769,-500.0,0.00017342,2]
[334693664,1723477853779,-500.0,0.00017342,2]
[334693665,1723477853788,-1203.23,0.00017342,2]
[334693666,1723477853799,-626.7,0.00017342,2]
[334693667,1723477853808,-500.0,0.00017342,2]
[334693668,1723477853818,-607.66,0.00017342,2]
[334693669,1723477853828,-500.0,0.00017342,2]
[334693670,1723477853839,-204.43233814,0.00017342,2]
[334693671,1723477854359,-1027.25,0.00015683,2]
[334693672,1723477854368,-1027.25,0.00015957,2]
[334693673,1723477854379,-1027.25,0.00016231,2]
[334693674,1723477854389,-1027.25,0.00016505,2]
[334693675,1723477854398,-1027.25,0.00016779,2]
[334693676,1723477854409,-1027.25,0.00017053,2]
[334693677,1723477854419,-151.0,0.00017184,2]
[334693678,1723477854428,-602.43766186,0.00017342,2]
[334693679,1723477854438,-500.0,0.00017342,2]
[334693680,1723477854448,-500.0,0.00017342,2]
[334693681,1723477854457,-500.0,0.00017342,2]
[334693682,1723477854468,-500.0,0.00017342,2]
[334693683,1723477854477,-1010.31,0.00017342,2]
[334693684,1723477854486,-500.0,0.00017342,2]
[334693685,1723477854496,-258.77780362,0.00017342,2]
[334693686,1723477854506,-447.97085865,0.00017342,2]
[334693687,1723477854515,-500.0,0.00017342,2]
[334693688,1723477854525,-500.0,0.00017342,2]
[334693689,1723477854534,-500.0,0.00017342,2]
[334693690,1723477854544,-500.0,0.00017342,2]
[334693691,1723477854553,-500.0,0.00017342,2]
[334693692,1723477854563,-500.0,0.00017342,2]
[334693693,1723477854573,-500.0,0.00017342,2]
[334693694,1723477854582,-500.0,0.00017342,2]
[334693695,1723477854591,-500.0,0.00017342,2]
[334693696,1723477854601,-783.07,0.00017342,2]
[334693697,1723477854612,-500.0,0.00017342,2]
[334693698,1723477854622,-991.97,0.00017342,2]
[334693699,1723477854631,-500.0,0.00017342,2]
[334693700,1723477854642,-991.28,0.00017342,2]
[334693701,1723477854651,-500.0,0.00017342,2]
[334693702,1723477854662,-500.0,0.00017342,2]
[334693703,1723477854671,-500.0,0.00017342,2]
[334693704,1723477854680,-875.88,0.00017342,2]
[334693705,1723477854691,-500.0,0.00017342,2]
[334693706,1723477854701,-500.0,0.00017342,2]
[334693707,1723477854712,-303.733673,0.00017342,2]
[334693708,1723477854723,-500.0,0.00017342,2]
[334693709,1723477854736,-303.733668,0.00017342,2]
[334693710,1723477854747,-500.0,0.00017342,2]
[334693711,1723477854758,-701.33,0.00017342,2]
[334693712,1723477854768,-656.1,0.00017342,2]
[334693713,1723477854777,-500.0,0.00017342,2]
[334693714,1723477854786,-535.14,0.00017342,2]
[334693715,1723477854795,-1494.75,0.00017342,2]
[334693716,1723477854805,-500.0,0.00017342,2]
[334693717,1723477854814,-529.34,0.00017342,2]
[334693718,1723477854823,-500.0,0.00017342,2]
[334693719,1723477854832,-1949.88,0.00017342,2]
[334693720,1723477854841,-560.17,0.00017342,2]
[334693721,1723477854850,-699.43,0.00017342,2]
[334693722,1723477854862,-593.45,0.00017342,2]
[334693723,1723477854872,-500.0,0.00017342,2]
[334693724,1723477854881,-733.21,0.00017342,2]
[334693725,1723477854890,-500.0,0.00017342,2]
[334693726,1723477854899,-500.0,0.00017342,2]
[334693727,1723477854908,-971.04,0.00017342,2]
[334693728,1723477854918,-608.87,0.00017342,2]
[334693729,1723477854927,-500.0,0.00017342,2]
[334693730,1723477854936,-643.61,0.00017342,2]
[334693731,1723477854945,-500.0,0.00017342,2]
[334693732,1723477854954,-950.28,0.00017342,2]
[334693733,1723477854965,-730.47,0.00017342,2]
[334693734,1723477854976,-316.094647,0.00017342,2]
[334693735,1723477854985,-316.094647,0.00017342,2]
[334693736,1723477854994,-1366.24,0.00017342,2]
[334693737,1723477855003,-826.23,0.00017342,2]
[334693738,1723477855013,-500.0,0.00017342,2]
[334693739,1723477855022,-502.81348,0.00017342,2]
[334693740,1723477855031,-502.81348,0.00017342,2]
[334693741,1723477855044,-500.0,0.00017342,2]
[334693742,1723477855055,-1259.64,0.00017342,2]
[334693743,1723477855065,-500.0,0.00017342,2]
[334693744,1723477855074,-1156.53,0.00017342,2]
[334693745,1723477855084,-500.0,0.00017342,2]
[334693746,1723477855094,-1738.61,0.00017342,2]
[334693747,1723477855103,-2425.17,0.00017342,2]
[334693748,1723477855115,-500.0,0.00017342,2]
[334693749,1723477855124,-1017.11,0.00017342,2]
[334693750,1723477855133,-596.59,0.00017342,2]
[334693751,1723477855143,-5627.13785662,0.00017386,2]
[334693752,1723477855152,-5627.13785662,0.00017386,2]
[334693753,1723477855161,-250.53341872,0.00017386,2]
[334693754,1723477855170,-7008.86868586,0.00017389,2]
[334693755,1723477855179,-150.112233,0.000174,2]
[334693756,1723477855189,-156.649056,0.00017402,2]
[334693757,1723477855198,-156.649062,0.00017402,2]
[334693758,1723477855207,-42383.12825852,0.00017402,2]
[334693759,1723477855217,-400.0,0.00017442,2]
[334693760,1723477855226,-533.56,0.00017447,2]
[334693761,1723477855235,-500.0,0.00017447,2]
[334693762,1723477855244,-500.0,0.00017447,2]
[334693763,1723477855255,-500.0,0.00017447,2]
[334693764,1723477855265,-500.0,0.00017447,2]
[334693765,1723477855274,-500.0,0.00017447,2]
[334693766,1723477855284,-908.99,0.00017447,2]
[334693767,1723477855293,-693.03,0.00017447,2]
[334693768,1723477855302,-6948.55,0.00017447,2]
[334693769,1723477855311,-2140.03,0.00017447,2]
[334693770,1723477855322,-1358.32,0.00017447,2]
[334693771,1723477855333,-500.0,0.00017447,2]
[334693772,1723477855343,-1240.17,0.00017447,2]
[334693773,1723477855354,-500.0,0.00017447,2]
[334693774,1723477855369,-500.0,0.00017447,2]
[334693775,1723477855379,-1304.93,0.00017447,2]
[334693776,1723477855395,-543.05,0.00017447,2]
[334693777,1723477855404,-901.84,0.00017447,2]
[334693778,1723477855414,-500.0,0.00017447,2]
[334693779,1723477855423,-500.0,0.00017447,2]
[334693780,1723477855432,-500.0,0.00017447,2]
[334693781,1723477855442,-500.0,0.00017447,2]
[334693782,1723477855452,-1635.31,0.00017447,2]
[334693783,1723477855461,-957.41,0.00017447,2]
[334693784,1723477855470,-500.0,0.00017447,2]
[334693785,1723477855479,-5514.85,0.00017447,2]
[334693786,1723477855489,-532.61,0.00017447,2]
[334693787,1723477855499,-500.0,0.00017447,2]
[334693788,1723477855508,-500.0,0.00017447,2]
[334693789,1723477855517,-890.0,0.00017448,2]
[334693790,1723477855526,-500.0,0.00017448,2]
[334693791,1723477855535,-990.82,0.00017448,2]
[334693792,1723477855547,-500.0,0.00017448,2]
[334693793,1723477855557,-500.0,0.00017448,2]
[334693794,1723477855567,-887.8,0.00017448,2]
[334693795,1723477855576,-1076.44,0.00017448,2]
[334693796,1723477855586,-500.0,0.00017448,2]
[334693797,1723477855596,-625.0,0.00017448,2]
[334693798,1723477855607,-557.37,0.00017448,2]
[334693799,1723477855621,-772.32,0.00017448,2]
[334693800,1723477855633,-1254.45,0.00017448,2]
[334693801,1723477855644,-1307.89,0.00017448,2]
[334693802,1723477855655,-584.21,0.00017448,2]
[334693803,1723477855664,-513.72,0.00017448,2]
[334693804,1723477855673,-500.0,0.00017448,2]
[334693805,1723477855682,-500.0,0.00017448,2]
[334693806,1723477855691,-1426.58,0.00017448,2]
[334693807,1723477855701,-638.85,0.00017448,2]
[334693808,1723477855710,-1004.82,0.00017448,2]
[334693809,1723477855719,-500.0,0.00017448,2]
[334693810,1723477855729,-500.0,0.00017448,2]
[334693811,1723477855738,-500.0,0.00017448,2]
[334693812,1723477855747,-500.0,0.00017448,2]
[334693813,1723477855756,-500.0,0.00017448,2]
[334693814,1723477855765,-500.0,0.00017448,2]
[334693815,1723477855775,-962.44,0.00017448,2]
[334693816,1723477855784,-500.0,0.00017448,2]
[334693817,1723477855794,-500.0,0.00017448,2]
[334693818,1723477855803,-673.1,0.00017448,2]
[334693819,1723477855813,-519.58,0.00017448,2]
[334693820,1723477855822,-500.0,0.00017448,2]
[334693821,1723477855832,-795.33,0.00017448,2]
[334693822,1723477855841,-964.42,0.00017448,2]
[334693823,1723477855850,-500.0,0.00017448,2]
[334693824,1723477855865,-2485.46,0.00017448,2]
[334693825,1723477855875,-847.51,0.00017448,2]
[334693826,1723477855883,-500.0,0.00017448,2]
[334693827,1723477855893,-693.64,0.00017448,2]
[334693828,1723477855901,-1579.24,0.00017448,2]
[334693829,1723477855911,-606.26,0.00017448,2]
[334693830,1723477855921,-1117.63,0.00017448,2]
[334693831,1723477855930,-316.094647,0.00017458,2]
[334693832,1723477855939,-316.094647,0.00017458,2]
[334693833,1723477855948,-502.81348,0.00017458,2]
[334693834,1723477855957,-502.81348,0.00017458,2]
[334693835,1723477855970,-954.8,0.00017458,2]
[334693836,1723477855979,-569.63,0.00017458,2]
[334693837,1723477855988,-637.99,0.00017458,2]
[334693838,1723477855997,-500.0,0.00017558,2]
[334693839,1723477856007,-500.0,0.00017558,2]
[334693840,1723477856018,-1336.96,0.00017558,2]
[334693841,1723477856027,-550.70561576,0.00017558,2]
[334693842,1723477856038,-500.0,0.00017558,2]
[334693843,1723477856050,-500.0,0.00017558,2]
[334693844,1723477856059,-727.71758858,0.000176,2]
[334693845,1723477856069,-500.0,0.00017601,2]
[334693846,1723477856078,-7381.38,0.00017601,2]
[334693847,1723477856087,-795.76,0.00017601,2]
[334693848,1723477856097,-1243.05,0.00017601,2]
[334693849,1723477856109,-783.69,0.00017601,2]
[334693850,1723477856120,-500.0,0.00017601,2]
[334693851,1723477856129,-1163.85,0.00017616,2]
[334693852,1723477856138,-500.0,0.00017616,2]
[334693853,1723477856148,-500.0,0.00017616,2]
[334693854,1723477856157,-500.0,0.00017616,2]
[334693855,1723477856166,-1203.23,0.00017616,2]
[334693856,1723477856175,-626.7,0.00017616,2]
[334693857,1723477856184,-500.0,0.00017616,2]
[334693858,1723477856194,-607.66,0.00017616,2]
[334693859,1723477856204,-500.0,0.00017616,2]
[334693860,1723477856214,-806.87,0.00017616,2]
[334693861,1723477856223,-215.49634274,0.00017616,2]
[334693862,1723477856233,-500.0,0.00017616,2]
[334693863,1723477856242,-500.0,0.00017616,2]
[334693864,1723477856251,-500.0,0.00017616,2]
[334693865,1723477856260,-1010.31,0.00017616,2]
[334693866,1723477856269,-500.0,0.00017616,2]
[334693867,1723477856278,-500.0,0.00017616,2]
[334693868,1723477856287,-500.0,0.00017616,2]
[334693869,1723477856298,-500.0,0.00017616,2]
[334693870,1723477856307,-500.0,0.00017616,2]
[334693871,1723477856317,-500.0,0.00017616,2]
[334693872,1723477856326,-500.0,0.00017616,2]
[334693873,1723477856336,-500.0,0.00017616,2]
[334693874,1723477856345,-500.0,0.00017616,2]
[334693875,1723477856354,-500.0,0.00017616,2]
[334693876,1723477856369,-783.07,0.00017616,2]
[334693877,1723477856379,-500.0,0.00017616,2]
[334693878,1723477856389,-991.97,0.00017616,2]
[334693879,1723477856398,-500.0,0.00017616,2]
[334693880,1723477856407,-991.28,0.00017616,2]
[334693881,1723477856417,-500.0,0.00017616,2]
[334693882,1723477856427,-500.0,0.00017616,2]
[334693883,1723477856437,-500.0,0.00017616,2]
[334693884,1723477856448,-875.88,0.00017616,2]
[334693885,1723477856459,-500.0,0.00017616,2]
[334693886,1723477856469,-500.0,0.00017616,2]
[334693887,1723477856478,-500.0,0.00017616,2]
[334693888,1723477856488,-500.0,0.00017616,2]
[334693889,1723477856498,-701.33,0.00017616,2]
[334693890,1723477856508,-656.1,0.00017616,2]
[334693891,1723477856519,-500.0,0.00017616,2]
[334693892,1723477856528,-535.14,0.00017616,2]
[334693893,1723477856538,-1494.75,0.00017616,2]
[334693894,1723477856548,-500.0,0.00017616,2]
[334693895,1723477856557,-529.34,0.00017616,2]
[334693896,1723477856566,-500.0,0.00017616,2]
[334693897,1723477856576,-1949.88,0.00017616,2]
[334693898,1723477856585,-560.17,0.00017616,2]
[334693899,1723477856595,-699.43,0.00017616,2]
[334693900,1723477856605,-593.45,0.00017616,2]
[334693901,1723477856618,-500.0,0.00017616,2]
[334693902,1723477856628,-733.21,0.00017616,2]
[334693903,1723477856639,-500.0,0.00017616,2]
[334693904,1723477856648,-500.0,0.00017616,2]
[334693905,1723477856657,-971.04,0.00017616,2]
[334693906,1723477856667,-608.87,0.00017616,2]
[334693907,1723477856678,-500.0,0.00017616,2]
[334693908,1723477856688,-643.61,0.00017616,2]
[334693909,1723477856698,-500.0,0.00017616,2]
[334693910,1723477856708,-950.28,0.00017616,2]
[334693911,1723477856719,-730.47,0.00017616,2]
[334693912,1723477856729,-1366.24,0.00017616,2]
[334693913,1723477856739,-826.23,0.00017616,2]
[334693914,1723477856748,-500.0,0.00017616,2]
[334693915,1723477856757,-500.0,0.00017616,2]
[334693916,1723477856767,-1259.64,0.00017616,2]
[334693917,1723477856776,-500.0,0.00017616,2]
[334693918,1723477856786,-1156.53,0.00017616,2]
[334693919,1723477856795,-500.0,0.00017616,2]
[334693920,1723477856804,-1738.61,0.00017616,2]
[334693921,1723477856814,-2425.17,0.00017616,2]
[334693922,1723477856823,-500.0,0.00017616,2]
[334693923,1723477856833,-1017.11,0.00017616,2]
[334693924,1723477856842,-596.59,0.00017616,2]
[334693925,1723477856851,-264.449718,0.00017616,2]
[334693926,1723477856864,-151.0,0.00017616,2]
[334693927,1723477856873,-151.0,0.00017616,2]
[334693928,1723477856882,-165.505622,0.00017616,2]
[334693929,1723477856891,-165.505622,0.00017616,2]
[334693930,1723477856901,-533.56,0.00017721,2]
[334693931,1723477856912,-500.0,0.00017721,2]
[334693932,1723477856921,-500.0,0.00017721,2]
[334693933,1723477856932,-500.0,0.00017721,2]
[334693934,1723477856943,-500.0,0.00017721,2]
[334693935,1723477856952,-500.0,0.00017721,2]
[334693936,1723477856963,-908.99,0.00017721,2]
[334693937,1723477856976,-693.03,0.00017721,2]
[334693938,1723477856986,-6948.55,0.00017721,2]
[334693939,1723477856996,-2140.03,0.00017721,2]
[334693940,1723477857006,-1358.32,0.00017721,2]
[334693941,1723477857016,-500.0,0.00017721,2]
[334693942,1723477857026,-1240.17,0.00017721,2]
[334693943,1723477857035,-500.0,0.00017721,2]
[334693944,1723477857047,-289.25238921,0.00017721,2]
[334693945,1723477857058,-1304.93,0.00017721,2]
[334693946,1723477857067,-543.05,0.00017721,2]
[334693947,1723477857076,-901.84,0.00017721,2]
[334693948,1723477857086,-500.0,0.00017721,2]
[334693949,1723477857096,-500.0,0.00017721,2]
[334693950,1723477857105,-259.22988273,0.00017721,2]
[334693951,1723477857116,-500.0,0.00017721,2]
[334693952,1723477857126,-1635.31,0.00017721,2]
[334693953,1723477857135,-957.41,0.00017721,2]
[334693954,1723477857145,-500.0,0.00017721,2]
[334693955,1723477857155,-5514.85,0.00017721,2]
[334693956,1723477857165,-271.831888,0.00017721,2]
[334693957,1723477857175,-532.61,0.00017721,2]
[334693958,1723477857184,-271.831888,0.00017721,2]
[334693959,1723477857193,-500.0,0.00017721,2]
[334693960,1723477857202,-565.80287964,0.00017721,2]
[334693961,1723477857212,-890.0,0.00017722,2]
[334693962,1723477857221,-500.0,0.00017722,2]
[334693963,1723477857232,-990.82,0.00017722,2]
[334693964,1723477857243,-226.02807599,0.00017722,2]
[334693965,1723477857253,-528.54547554,0.00017722,2]
[334693966,1723477857262,-887.8,0.00017722,2]
[334693967,1723477857272,-1076.44,0.00017722,2]
[334693968,1723477857280,-500.0,0.00017722,2]
[334693969,1723477857290,-625.0,0.00017722,2]
[334693970,1723477857300,-557.37,0.00017722,2]
[334693971,1723477857309,-772.32,0.00017722,2]
[334693972,1723477857319,-1254.45,0.00017722,2]
[334693973,1723477857328,-1307.89,0.00017722,2]
[334693974,1723477857337,-584.21,0.00017722,2]
[334693975,1723477857346,-513.72,0.00017722,2]
[334693976,1723477857355,-500.0,0.00017722,2]
[334693977,1723477857366,-500.0,0.00017722,2]
[334693978,1723477857376,-1426.58,0.00017722,2]
[334693979,1723477857386,-638.85,0.00017722,2]
[334693980,1723477857395,-1004.82,0.00017722,2]
[334693981,1723477857405,-500.0,0.00017722,2]
[334693982,1723477857416,-500.0,0.00017722,2]
[334693983,1723477857427,-500.0,0.00017722,2]
[334693984,1723477857565,-187.46442909,0.00017722,2]
[334693985,1723477857576,-500.0,0.00017722,2]
[334693986,1723477857586,-500.0,0.00017722,2]
[334693987,1723477857595,-962.44,0.00017722,2]
[334693988,1723477857605,-500.0,0.00017722,2]
[334693989,1723477857620,-500.0,0.00017722,2]
[334693990,1723477857630,-673.1,0.00017722,2]
[334693991,1723477857639,-519.58,0.00017722,2]
[334693992,1723477857648,-188.34486963,0.00017722,2]
[334693993,1723477857658,-795.33,0.00017722,2]
[334693994,1723477857667,-964.42,0.00017722,2]
[334693995,1723477857677,-330.00482037,0.00017722,2]
[334693996,1723477857686,-2485.46,0.00017722,2]
[334693997,1723477857696,-847.51,0.00017722,2]
[334693998,1723477857705,-500.0,0.00017722,2]
[334693999,1723477857715,-693.64,0.00017722,2]
[334694000,1723477857725,-1579.24,0.00017722,2]
[334694001,1723477857735,-606.26,0.00017722,2]
[334694002,1723477857746,-1117.63,0.00017722,2]
[334694003,1723477857755,-316.094647,0.00017732,2]
[334694004,1723477857765,-316.094653,0.00017732,2]
[334694005,1723477857775,-502.81348,0.00017732,2]
[334694006,1723477857784,-502.813486,0.00017732,2]
[334694007,1723477857794,-954.8,0.00017732,2]
[334694008,1723477857803,-569.63,0.00017732,2]
[334694009,1723477857812,-637.99,0.00017732,2]
[334694010,1723477857821,-200.0,0.00017832,2]
[334694011,1723477857830,-200.0,0.00017832,2]
[334694012,1723477857840,-500.0,0.00017832,2]
[334694013,1723477857850,-500.0,0.00017832,2]
[334694014,1723477857860,-1336.96,0.00017832,2]
[334694015,1723477857869,-500.0,0.00017832,2]
[334694016,1723477857878,-500.0,0.00017832,2]
[334694017,1723477857887,-277.46411292,0.0001784,2]
[334694018,1723477857896,-1384.90491059,0.0001784,2]
[334694019,1723477857906,-500.0,0.00017875,2]
[334694020,1723477857915,-7381.38,0.00017875,2]
[334694021,1723477857924,-795.76,0.00017875,2]
[334694022,1723477857934,-1243.05,0.00017875,2]
[334694023,1723477857943,-783.69,0.00017875,2]
[334694024,1723477857953,-500.0,0.00017875,2]
[334694025,1723477857964,-1163.85,0.0001789,2]
[334694026,1723477857974,-547.29029821,0.0001789,2]
[334694027,1723477857983,-500.0,0.0001789,2]
[334694028,1723477857992,-500.0,0.0001789,2]
[334694029,1723477858001,-1203.23,0.0001789,2]
[334694030,1723477858010,-626.7,0.0001789,2]
[334694031,1723477858019,-500.0,0.0001789,2]
[334694032,1723477858029,-607.66,0.0001789,2]
[334694033,1723477858039,-222.68718128,0.0001789,2]
[334694034,1723477858049,-806.87,0.0001789,2]
[334694035,1723477858058,-500.0,0.0001789,2]
[334694036,1723477858068,-500.0,0.0001789,2]
[334694037,1723477858077,-500.0,0.0001789,2]
[334694038,1723477858088,-1010.31,0.0001789,2]
[334694039,1723477858097,-500.0,0.0001789,2]
[334694040,1723477858106,-500.0,0.0001789,2]
[334694041,1723477858117,-564.98108192,0.0001789,2]
[334694042,1723477858126,-500.0,0.0001789,2]
[334694043,1723477858136,-500.0,0.0001789,2]
[334694044,1723477858145,-500.0,0.0001789,2]
[334694045,1723477858154,-500.0,0.0001789,2]
[334694046,1723477858163,-500.0,0.0001789,2]
[334694047,1723477858172,-500.0,0.0001789,2]
[334694048,1723477858181,-500.0,0.0001789,2]
[334694049,1723477858190,-783.07,0.0001789,2]
[334694050,1723477858200,-456.75643609,0.0001789,2]
[334694051,1723477858209,-991.97,0.0001789,2]
[334694052,1723477858218,-500.0,0.0001789,2]
[334694053,1723477858227,-991.28,0.0001789,2]
[334694054,1723477858237,-500.0,0.0001789,2]
[334694055,1723477858246,-500.0,0.0001789,2]
[334694056,1723477858255,-373.28333983,0.0001789,2]
[334694057,1723477858265,-875.88,0.0001789,2]
[334694058,1723477858274,-500.0,0.0001789,2]
[334694059,1723477858284,-500.0,0.0001789,2]
[334694060,1723477858292,-500.0,0.0001789,2]
[334694061,1723477858302,-500.0,0.0001789,2]
[334694062,1723477858311,-701.33,0.0001789,2]
[334694063,1723477858319,-656.1,0.0001789,2]
[334694064,1723477858329,-500.0,0.0001789,2]
[334694065,1723477858338,-535.14,0.0001789,2]
[334694066,1723477858348,-1494.75,0.0001789,2]
[334694067,1723477858357,-500.0,0.0001789,2]
[334694068,1723477858370,-529.34,0.0001789,2]
[334694069,1723477858379,-500.0,0.0001789,2]
[334694070,1723477858388,-560.17,0.0001789,2]
[334694071,1723477858398,-1949.88,0.0001789,2]
[334694072,1723477858407,-699.43,0.0001789,2]
[334694073,1723477858417,-593.45,0.0001789,2]
[334694074,1723477858427,-500.0,0.0001789,2]
[334694075,1723477858436,-733.21,0.0001789,2]
[334694076,1723477858446,-428.29888972,0.0001789,2]
[334694077,1723477858455,-357.83160174,0.0001789,2]
[334694078,1723477858465,-971.04,0.0001789,2]
[334694079,1723477858474,-608.87,0.0001789,2]
[334694080,1723477858484,-500.0,0.0001789,2]
[334694081,1723477858493,-643.61,0.0001789,2]
[334694082,1723477858502,-500.0,0.0001789,2]
[334694083,1723477858512,-950.28,0.0001789,2]
[334694084,1723477858521,-730.47,0.0001789,2]
[334694085,1723477858531,-1366.24,0.0001789,2]
[334694086,1723477858541,-826.23,0.0001789,2]
[334694087,1723477858551,-500.0,0.0001789,2]
[334694088,1723477858561,-500.0,0.0001789,2]
[334694089,1723477858570,-1259.64,0.0001789,2]
[334694090,1723477858580,-500.0,0.0001789,2]
[334694091,1723477858589,-1156.53,0.0001789,2]
[334694092,1723477858600,-385.58669129,0.0001789,2]
[334694093,1723477858618,-1738.61,0.0001789,2]
[334694094,1723477858627,-2425.17,0.0001789,2]
[334694095,1723477858637,-500.0,0.0001789,2]
[334694096,1723477858646,-1017.11,0.0001789,2]
[334694097,1723477858655,-596.59,0.0001789,2]
[334694098,1723477858664,-533.56,0.00017995,2]
[334694099,1723477858673,-402.91190456,0.00017995,2]
[334694100,1723477858683,-500.0,0.00017995,2]
[334694101,1723477858693,-500.0,0.00017995,2]
[334694102,1723477858702,-500.0,0.00017995,2]
[334694103,1723477858711,-500.0,0.00017995,2]
[334694104,1723477858720,-908.99,0.00017995,2]
[334694105,1723477858729,-693.03,0.00017995,2]
[334694106,1723477858739,-6948.55,0.00017995,2]
[334694107,1723477858748,-2140.03,0.00017995,2]
[334694108,1723477858757,-1358.32,0.00017995,2]
[334694109,1723477858767,-500.0,0.00017995,2]
[334694110,1723477858777,-1240.17,0.00017995,2]
[334694111,1723477858786,-500.0,0.00017995,2]
[334694112,1723477858795,-1304.93,0.00017995,2]
[334694113,1723477858804,-543.05,0.00017995,2]
[334694114,1723477858813,-901.84,0.00017995,2]
[334694115,1723477858822,-151.0,0.00017995,2]
[334694116,1723477858831,-500.0,0.00017995,2]
[334694117,1723477858840,-151.0,0.00017995,2]
[334694118,1723477858849,-478.01161825,0.00017995,2]
[334694119,1723477858861,-500.0,0.00017995,2]
[334694120,1723477858874,-1635.31,0.00017995,2]
[334694121,1723477858883,-957.41,0.00017995,2]
[334694122,1723477858892,-500.0,0.00017995,2]
[334694123,1723477858901,-5514.85,0.00017995,2]
[334694124,1723477858910,-532.61,0.00017995,2]
[334694125,1723477858919,-500.0,0.00017995,2]
[334694126,1723477858929,-165.505622,0.00017995,2]
[334694127,1723477858938,-165.505622,0.00017995,2]
[334694128,1723477858948,-890.0,0.00017996,2]
[334694129,1723477858957,-500.0,0.00017996,2]
[334694130,1723477858969,-990.82,0.00017996,2]
[334694131,1723477858978,-887.8,0.00017996,2]
[334694132,1723477858988,-1076.44,0.00017996,2]
[334694133,1723477858997,-500.0,0.00017996,2]
[334694134,1723477859007,-625.0,0.00017996,2]
[334694135,1723477859018,-557.37,0.00017996,2]
[334694136,1723477859028,-772.32,0.00017996,2]
[334694137,1723477859038,-1254.45,0.00017996,2]
[334694138,1723477859048,-1307.89,0.00017996,2]
[334694139,1723477859057,-584.21,0.00017996,2]
[334694140,1723477859066,-513.72,0.00017996,2]
[334694141,1723477859076,-500.0,0.00017996,2]
[334694142,1723477859085,-500.0,0.00017996,2]
[334694143,1723477859095,-1426.58,0.00017996,2]
[334694144,1723477859104,-638.85,0.00017996,2]
[334694145,1723477859118,-1004.82,0.00017996,2]
[334694146,1723477859128,-500.0,0.00017996,2]
[334694147,1723477859138,-500.0,0.00017996,2]
[334694148,1723477859147,-500.0,0.00017996,2]
[334694149,1723477859157,-196.31697794,0.00017996,2]
[334694150,1723477859166,-500.0,0.00017996,2]
[334694151,1723477859176,-962.44,0.00017996,2]
[334694152,1723477859185,-500.0,0.00017996,2]
[334694153,1723477859195,-500.0,0.00017996,2]
[334694154,1723477859205,-673.1,0.00017996,2]
[334694155,1723477859214,-519.58,0.00017996,2]